bitfinex-derivatives/quotes_SOLF0:USTF0_20250816
["timestamp","ask_amount","ask_price","bid_price","bid_amount"]
[1755362501095,3.1,188.05,188.02,2.93]
[1755362501690,5.3139,188.06,188.03,131.26]
[1755362501691,3.1,188.04,188.03,131.26]
[1755362502191,5.3139,188.06,188.04,2.93]
[1755362502379,3.1,188.05,188.04,2.93]
[1755362506685,5.3133,188.08,188.03,136.5745]
[1755362506880,2.5361873,188.14,188.03,136.5745]
[1755362506881,3.1,188.06,188.04,2.93]
[1755362507286,4.40457744,188.15,188.04,2.93]
[1755362507583,3.1,188.13,188.08,2.93]
[1755362507789,3.1,188.13,188.09,2.93]
[1755362507979,3.1,188.12,188.09,2.93]
[1755362508186,5.312,188.13,188.1,2.93]
[1755362508378,5.312,188.13,188.09,2.93]
[1755362508585,3.1,188.11,188.09,2.93]
[1755362508888,3.1,188.11,188.1,5.4361873]
[1755362509084,64.50831192,188.17,188.1,5.4361873]
[1755362509290,2.85,188.13,188.1,5.4361873]
[1755362509788,2.85,188.13,188.1,2.5361873]
[1755362509984,2.85,188.13,188.07,2.5361873]
[1755362510189,2.85,188.13,188.07,131.24]
[1755362510891,2.85,188.09,188.07,131.24]
[1755362511283,5.3123,188.12,188.08,2.9]
[1755362511487,2.85,188.1,188.09,2.9]
[1755362511784,2.85,188.11,188.1,2.9]
[1755362512484,2.85,188.1,188.07,133.7761873]
[1755362512983,6.97882963,188.2,188.07,133.7761873]
[1755362512984,2.85,188.09,188.07,136.6761873]
[1755362513188,2.85,188.08,188.07,136.6761873]
[1755362513587,2.85,188.08,188.07,5.4361873]
[1755362513889,2.85,188.1,188.08,2.9]
[1755362514188,2.85,188.11,188.09,2.9]
[1755362514491,2.85,188.19,188.08,5.3133]
[1755362514691,2.85,188.13,188.09,2.9]
[1755362515789,5.3119,188.13,188.09,2.9]
[1755362515990,2.85,188.12,188.09,2.9]
[1755362516694,2.85,188.12,188.1,2.9]
[1755362518198,2.85,188.11,188.1,8.2127]
[1755362518397,15.0571668,188.22,188.11,2.9]
[1755362518398,2.85,188.12,188.11,2.9]
[1755362524601,2.85,188.21,188.11,2.9]
[1755362524903,2.85,188.14,188.12,2.9]
[1755362525603,2.85,188.14,188.1,10.7488873]
[1755362525804,2.85,188.14,188.11,2.9]
[1755362527007,8.1616,188.14,188.11,2.9]
[1755362527306,2.85,188.21,188.1,5.4361873]
[1755362527602,5.312,188.13,188.1,5.4361873]
[1755362527807,2.85,188.12,188.1,5.4361873]
[1755362528005,5.312,188.13,188.1,5.4361873]
[1755362528198,2.85,188.11,188.1,5.4361873]
[1755362536505,2.85,188.11,188.07,131.2]
[1755362536506,2.85,188.11,188.08,131.06]
[1755362537218,2.85,188.09,188.08,131.06]
[1755362542806,2.85,188.09,188.08,134.12]
[1755362545020,2.85,188.09,188.08,131.06]
[1755362545711,8.163,188.09,188.08,131.06]
[1755362547418,3.12,188.04,188.03,3.06]
[1755362547616,3.12,188.04,188.03,134.08]
[1755362548717,8.4344,188.04,188.03,131.02]
[1755362548909,3.12,188.04,188.01,5.5961873]
[1755362549110,3.12,188.04,188.02,131.02]
[1755362549312,3.12,188.03,188.02,131.02]
[1755362549713,3.12,188.12,188.02,131.02]
[1755362549913,3.12,188.05,188.04,3.06]
[1755362551321,2.5361873,188.11,188.0,131.02]
[1755362551513,7.13512326,188.1,188.0,131.02]
[1755362551713,5.3152,188.02,188.0,131.02]
[1755362552019,3.12,188.01,188.0,131.02]
[1755362552215,3.12,188.01,188.0,134.08]
[1755362552816,5.3147,188.03,188.0,134.08]
[1755362552817,3.12,188.03,188.0,139.3955]
[1755362553017,2.5361873,188.11,188.0,136.3355]
[1755362553319,4.0140716,188.1,188.02,3.06]
[1755362553519,10.6238,188.13,188.02,3.06]
[1755362553720,4.0130856,188.12,188.02,3.06]
[1755362553922,4.0130856,188.11,188.02,3.06]
[1755362554118,5.3143,188.05,188.01,7.8513873]
[1755362554319,3.12,188.04,188.03,3.06]
[1755362554722,10.6238,188.13,188.03,3.06]
[1755362554723,8.4339,188.06,188.03,3.06]
[1755362555117,3.12,188.12,188.04,134.08]
[1755362555312,8.4341,188.05,188.04,134.08]
[1755362556021,8.4341,188.05,188.04,131.02]
[1755362556424,8.4341,188.05,188.04,134.08]
[1755362556623,3.12,188.05,188.04,134.08]
[1755362556823,3.12,188.12,188.04,134.08]
[1755362557027,3.12,188.1,188.05,3.06]
[1755362557322,3.12,188.15,188.05,3.06]
[1755362557524,3.12,188.13,188.05,3.06]
[1755362557715,4.01182575,188.12,188.05,3.06]
[1755362557913,3.12,188.11,188.05,3.06]
[1755362559220,5.3135,188.08,188.05,3.06]
[1755362559425,3.12,188.07,188.05,3.06]
[1755362559622,8.4336,188.07,188.05,3.06]
[1755362559926,3.12,188.15,188.06,3.06]
[1755362560124,4.01155465,188.14,188.06,3.06]
[1755362560321,3.12,188.13,188.06,3.06]
[1755362560922,3.12,188.13,188.04,133.5561873]
[1755362561122,3.12,188.13,188.05,3.06]
[1755362562223,5.3141,188.06,188.05,3.06]
[1755362562421,8.4341,188.06,188.05,3.06]
[1755362562628,5.3141,188.06,188.05,3.06]
[1755362563030,5.3136,188.07,188.05,3.06]
[1755362563237,3.12,188.1,188.05,3.06]
[1755362563434,3.12,188.17,188.08,3.06]
[1755362563634,5.3125,188.11,188.08,3.06]
[1755362564034,2.5361873,188.19,188.08,5.3132]
[1755362564237,8.4322,188.12,188.09,3.06]
[1755362564532,2.5361873,188.22,188.09,136.293]
[1755362564736,5.3118,188.14,188.1,3.06]
[1755362564938,8.4318,188.14,188.11,3.06]
[1755362566138,8.4314,188.15,188.11,3.06]
[1755362566736,3.12,188.14,188.11,3.06]
[1755362567240,8.4316,188.14,188.11,3.06]
[1755362567441,3.12,188.14,188.1,3.06]
[1755362568544,3.12,188.2,188.09,130.98]
[1755362568841,2.5361873,188.18,188.09,130.98]
[1755362569031,4.01151356,188.17,188.09,130.98]
[1755362569232,8.1627,188.1,188.09,130.98]
[1755362570942,8.1636,188.07,188.06,2.94]
[1755362571145,2.85,188.17,188.06,2.94]
[1755362571445,2.85,188.15,188.06,2.94]
[1755362571644,2.85,188.13,188.06,2.94]
[1755362572041,2.85,188.13,188.06,8.2538]
[1755362572243,2.85,188.13,188.07,2.94]
[1755362572941,5.3129,188.1,188.07,2.94]
[1755362573143,2.5361873,188.18,188.07,2.94]
[1755362573144,2.85,188.09,188.07,2.94]
[1755362573343,2.85,188.09,188.08,2.94]
[1755362574248,2.85,188.17,188.06,2.94]
[1755362574446,2.85,188.15,188.06,2.94]
[1755362574747,2.85,188.13,188.06,2.94]
[1755362574942,2.85,188.13,188.0,2.94]
[1755362575148,2.85,188.11,188.02,2.94]
[1755362575448,2.85,188.11,188.03,2.94]
[1755362581953,2.85,188.11,188.01,133.4561873]
[1755362582247,2.85,188.09,188.02,2.94]
[1755362582446,5.3145,188.04,188.02,2.94]
[1755362582748,2.85,188.08,188.02,2.94]
[1755362583148,2.85,188.08,188.01,133.4561873]
[1755362583149,2.85,188.15,188.07,2.5361873]
[1755362583348,2.85,188.13,188.08,2.94]
[1755362583554,2.85,188.17,188.08,2.94]
[1755362583848,2.85,188.15,188.08,2.94]
[1755362584049,8.1619,188.13,188.08,2.94]
[1755362584253,2.85,188.15,188.08,2.94]
[1755362584453,2.85,188.15,188.11,2.94]
[1755362584853,2.85,188.14,188.11,2.94]
[1755362585247,8.1618,188.14,188.11,2.94]
[1755362586247,2.85,188.14,188.12,2.94]
[1755362586447,8.1614,188.15,188.12,2.94]
[1755362587258,8.1614,188.15,188.13,2.94]
[1755362587452,8.1614,188.15,188.14,2.94]
[1755362591061,2.85,188.15,188.12,2.94]
[1755362591255,2.85,188.15,188.13,2.94]
[1755362591556,2.85,188.15,188.1,2.5361873]
[1755362591557,2.85,188.15,188.08,2.94]
[1755362594159,2.85,188.15,188.08,8.2533]
[1755362594358,2.85,188.15,188.08,5.3133]
[1755362594556,2.85,188.15,188.09,2.94]
[1755362598158,5.3127,188.11,188.09,2.94]
[1755362598661,2.85,188.12,188.09,2.94]
[1755362598956,8.1622,188.12,188.09,2.94]
[1755362599161,2.85,188.12,188.09,2.94]
[1755362600360,8.1622,188.12,188.09,2.94]
[1755362600563,3.07,188.11,188.1,2.98]
[1755362601060,8.3825,188.11,188.1,2.98]
[1755362602657,3.07,188.11,188.1,2.98]
[1755362602856,3.07,188.11,188.07,133.4361873]
[1755362603253,3.07,188.11,188.08,8.2931]
[1755362603453,3.07,188.11,188.08,5.3131]
[1755362603762,5.312,188.13,188.09,2.98]
[1755362603953,8.382,188.13,188.09,2.98]
[1755362604159,8.382,188.13,188.09,8.2929]
[1755362604359,3.07,188.12,188.1,2.98]
[1755362608967,3.07,188.12,188.1,8.2927]
[1755362609166,3.07,188.12,188.11,2.98]
[1755362611069,8.3821,188.12,188.09,2.98]
[1755362611269,3.07,188.11,188.08,2.98]
[1755362611570,8.3826,188.11,188.08,2.98]
[1755362611772,3.07,188.18,188.07,133.4361873]
[1755362611966,5.6061873,188.16,188.07,130.9]
[1755362612169,8.3833,188.08,188.07,130.9]
[1755362614572,8.3833,188.08,188.07,133.88]
[1755362620073,3.07,188.16,188.08,2.98]
[1755362620271,4.04089437,188.15,188.08,2.98]
[1755362620572,5.3129,188.1,188.08,2.98]
[1755362620773,3.07,188.09,188.08,2.98]
[1755362621176,3.07,188.13,188.08,2.98]
[1755362621476,3.07,188.13,188.09,2.98]
[1755362622277,3.07,188.1,188.09,2.98]
[1755362624573,5.3125,188.11,188.09,2.98]
[1755362624778,3.07,188.18,188.08,2.98]
[1755362625075,3.07,188.16,188.08,2.98]
[1755362625276,5.3118,188.14,188.1,2.5361873]
[1755362625479,8.3818,188.14,188.11,2.98]
[1755362625970,3.07,188.13,188.11,2.98]
[1755362626179,3.07,188.13,188.12,2.98]
[1755362626873,8.3813,188.15,188.12,2.98]
[1755362627075,3.07,188.14,188.12,2.98]
[1755362628374,3.07,188.14,188.13,2.98]
[1755362628673,7.50331557,188.21,188.1,3.1]
[1755362628876,15.87730945,188.2,188.08,133.8]
[1755362629076,3.06,188.18,188.09,3.1]
[1755362629380,3.06,188.16,188.09,3.1]
[1755362629574,4.04306592,188.15,188.09,3.1]
[1755362629770,3.06,188.14,188.1,3.1]
[1755362630368,8.3724,188.11,188.1,3.1]
[1755362630575,3.06,188.1,188.09,3.1]
[1755362630776,3.06,188.1,188.08,130.7]
[1755362630977,3.06,188.1,188.08,133.8]
[1755362632268,3.06,188.09,188.08,133.8]
[1755362632675,5.3121,188.13,188.09,3.1]
[1755362632975,3.06,188.12,188.09,8.413]
[1755362633175,3.06,188.12,188.09,2.5361873]
[1755362633373,3.06,188.12,188.11,3.1]
[1755362633971,5.3116,188.14,188.11,3.1]
[1755362634282,3.06,188.13,188.11,3.1]
[1755362634781,3.06,188.19,188.12,2.5361873]
[1755362634984,3.06,188.17,188.13,3.1]
[1755362635281,3.06,188.22,188.13,3.1]
[1755362635483,3.06,188.16,188.14,3.1]
[1755362637079,3.06,188.15,188.14,3.1]
[1755362637284,4.44331557,188.22,188.09,5.3128]
[1755362637478,3.06,188.13,188.08,133.2361873]
[1755362637681,3.06,188.13,188.08,136.3361873]
[1755362637682,8.3719,188.13,188.08,136.3361873]
[1755362637985,3.06,188.12,188.09,3.1]
[1755362638188,5.3125,188.11,188.08,133.2361873]
[1755362638381,3.06,188.18,188.09,3.1]
[1755362638582,3.06,188.16,188.09,3.1]
[1755362638886,3.06,188.11,188.09,3.1]
[1755362639183,3.06,188.18,188.09,3.1]
[1755362639385,3.06,188.13,188.09,3.1]
[1755362639986,3.06,188.13,188.12,3.1]
[1755362643881,3.06,188.21,188.12,3.1]
[1755362644090,3.06,188.19,188.11,5.6361873]
[1755362644283,3.06,188.19,188.12,3.1]
[1755362644587,3.06,188.17,188.11,2.5361873]
[1755362644887,3.06,188.12,188.08,133.2361873]
[1755362645188,3.06,188.12,188.09,3.1]
[1755362646281,5.3124,188.12,188.09,3.1]
[1755362646492,3.06,188.1,188.09,3.1]
[1755362648491,3.06,188.1,188.08,133.2361873]
[1755362648794,5.3125,188.11,188.08,133.2361873]
[1755362648984,3.06,188.09,188.08,136.3361873]
[1755362649190,3.06,188.12,188.08,133.1761873]
[1755362649503,3.06,188.11,188.1,3.1]
[1755362652101,3.06,188.13,188.1,5.3127]
[1755362652297,3.06,188.13,188.11,3.1]
[1755362652497,4.44331557,188.22,188.12,3.1]
[1755362652690,3.06,188.14,188.12,3.1]
[1755362652895,3.06,188.13,188.12,3.1]
[1755362653098,3.06,188.15,188.12,3.1]
[1755362653501,4.44331557,188.24,188.13,130.64]
[1755362653801,3.06,188.22,188.15,3.1]
[1755362654004,3.06,188.2,188.17,2.5361873]
[1755362654206,3.06,188.19,188.18,3.1]
[1755362655901,5.3099,188.2,188.17,2.5361873]
[1755362656204,3.06,188.18,188.17,5.6361873]
[1755362659210,2.97,188.19,188.17,2.5361873]
[1755362659406,2.97,188.19,188.18,3.0]
[1755362660704,2.97,188.19,188.17,2.5361873]
[1755362660911,5.3099,188.2,188.17,2.5361873]
[1755362661208,2.97,188.18,188.17,5.5361873]
[1755362661410,2.97,188.18,188.14,2.5361873]
[1755362661708,2.97,188.18,188.12,130.58]
[1755362661906,2.97,188.18,188.12,5.3121]
[1755362662106,2.97,188.18,188.13,3.0]
[1755362662506,2.97,188.18,188.14,3.0]
[1755362662907,5.3108,188.17,188.14,3.0]
[1755362663104,2.97,188.15,188.14,3.0]
[1755362664108,2.97,188.15,188.13,5.3118]
[1755362664305,2.5361873,188.24,188.14,2.5361873]
[1755362664306,2.97,188.24,188.14,2.5361873]
[1755362664607,2.97,188.22,188.18,2.5361873]
[1755362664804,2.97,188.22,188.18,5.5361873]
[1755362665110,2.97,188.2,188.18,5.5361873]
[1755362666213,5.3099,188.21,188.18,5.5361873]
[1755362666412,2.97,188.19,188.18,10.8465873]
[1755362666711,5.309,188.24,188.19,3.0]
[1755362666914,2.97,188.23,188.2,5.3097]
[1755362667104,2.97,188.23,188.21,3.0]
[1755362667912,2.97,188.22,188.21,3.0]
[1755362669213,2.97,188.22,188.21,8.3096]
[1755362669416,2.97,188.31,188.22,3.0]
[1755362669604,2.97,188.29,188.22,3.0]
[1755362669805,5.3084,188.26,188.22,8.3093]
[1755362670017,2.97,188.25,188.22,8.3093]
[1755362670610,8.2785,188.25,188.22,8.3093]
[1755362670809,2.97,188.24,188.22,8.3093]
[1755362671515,2.97,188.23,188.22,8.3093]
[1755362672316,2.97,188.25,188.23,3.0]
[1755362674013,2.97,188.25,188.23,8.309]
[1755362674217,2.97,188.26,188.24,2.5361873]
[1755362674516,2.97,188.36,188.24,2.5361873]
[1755362674707,5.3084,188.26,188.24,2.5361873]
[1755362674912,2.97,188.25,188.24,2.5361873]
[1755362675409,2.97,188.36,188.25,3.0]
[1755362675606,2.97,188.34,188.25,3.0]
[1755362675808,5.308,188.27,188.25,3.0]
[1755362676014,2.97,188.26,188.25,3.0]
[1755362676513,2.97,188.27,188.25,3.0]
[1755362677522,2.97,188.27,188.24,7.8448873]
[1755362677718,5.3077,188.28,188.26,3.0]
[1755362678422,2.97,188.27,188.26,3.0]
[1755362678618,5.3077,188.28,188.24,10.8448873]
[1755362678807,2.97,188.27,188.25,3.0]
[1755362679013,2.97,188.27,188.26,3.0]
[1755362680619,8.2777,188.28,188.27,3.0]
[1755362681011,2.97,188.28,188.27,5.5361873]
[1755362681213,357.0,188.39,188.27,2.5361873]
[1755362681517,2.97,188.37,188.27,2.5361873]
[1755362681710,8.2776,188.28,188.27,2.5361873]
[1755362681918,2.97,188.28,188.25,3.0]
[1755362682918,2.97,188.27,188.25,3.0]
[1755362683311,5.3079,188.28,188.25,3.0]
[1755362683312,2.97,188.26,188.25,3.0]
[1755362684024,2.97,188.26,188.25,5.5361873]
[1755362686123,2.97,188.37,188.26,3.0]
[1755362686421,2.97,188.37,188.28,2.5361873]
[1755362686616,2.97,188.37,188.28,5.5361873]
[1755362687215,5.3071,188.3,188.28,5.5361873]
[1755362687413,2.97,188.39,188.29,3.0]
[1755362687616,5.3067,188.32,188.29,3.0]
[1755362687821,2.97,188.31,188.28,2.5361873]
[1755362688019,2.97,188.31,188.29,3.0]
[1755362688222,2.97,188.31,188.3,3.0]
[1755362689328,2.97,188.31,188.28,3.07]
[1755362689519,2.97,188.31,188.29,5.6061873]
[1755362690017,2.84,188.3,188.29,5.6061873]
[1755362690220,2.84,188.3,188.29,3.07]
[1755362690825,2.84,188.39,188.29,3.07]
[1755362691025,4.01028229,188.38,188.29,3.07]
[1755362691325,2.84,188.37,188.29,3.07]
[1755362691527,5.307,188.31,188.29,3.07]
[1755362691730,2.84,188.3,188.29,3.07]
[1755362694031,2.84,188.29,188.28,2.5361873]
[1755362694225,2.84,188.29,188.28,5.6061873]
[1755362694426,2.84,188.31,188.28,2.5361873]
[1755362694624,2.84,188.31,188.29,3.07]
[1755362694930,15.9133,188.4,188.28,2.5361873]
[1755362695128,2.84,188.32,188.29,3.07]
[1755362695531,5.3065,188.33,188.3,3.07]
[1755362695829,15.9133,188.4,188.31,3.07]
[1755362696028,4.01039215,188.39,188.31,3.07]
[1755362696224,4.01039215,188.38,188.31,3.07]
[1755362696430,8.1465,188.32,188.31,3.07]
[1755362697830,5.307,188.31,188.28,5.6061873]
[1755362698029,2.84,188.39,188.28,2.5361873]
[1755362698223,2.84,188.37,188.28,2.5361873]
[1755362698529,4.01218167,188.38,188.28,2.5361873]
[1755362698530,2.84,188.29,188.28,5.6061873]
[1755362699930,8.1473,188.29,188.28,136.0461873]
[1755362700233,2.84,188.29,188.26,3.07]
[1755362700531,2.84,188.29,188.25,5.6061873]
[1755362700924,8.1482,188.26,188.25,5.6061873]
[1755362701124,2.84,188.26,188.25,5.6061873]
[1755362701828,2.84,188.37,188.26,3.07]
[1755362702022,2.84,188.37,188.3,5.6061873]
[1755362702624,15.9133,188.4,188.3,5.6061873]
[1755362702625,2.84,188.31,188.3,5.6061873]
[1755362703231,2.84,188.39,188.31,3.07]
[1755362703433,2.84,188.37,188.33,5.6061873]
[1755362703628,2.84,188.37,188.34,3.07]
[1755362703824,2.84,188.35,188.33,2.5361873]
[1755362704425,2.84,188.31,188.3,5.6061873]
[1755362704630,2.84,188.31,188.27,5.6061873]
[1755362704830,2.84,188.31,188.27,136.0261873]
[1755362705527,2.84,188.36,188.27,136.0261873]
[1755362705733,2.84,188.36,188.28,3.07]
[1755362706724,2.84,188.36,188.31,3.07]
[1755362706925,2.84,188.4,188.31,3.07]
[1755362707126,2.84,188.38,188.31,3.07]
[1755362707734,2.84,188.42,188.34,3.07]
[1755362707928,4.02118684,188.41,188.34,3.07]
[1755362708127,5.3053,188.37,188.34,3.07]
[1755362708332,2.84,188.44,188.36,2.5361873]
[1755362708632,5.3047,188.39,188.36,2.5361873]
[1755362708938,8.1447,188.39,188.38,3.07]
[1755362709135,8.1447,188.39,188.36,2.5361873]
[1755362709434,8.1447,188.39,188.38,3.07]
[1755362709838,8.1447,188.39,188.36,5.6061873]
[1755362710048,8.1447,188.39,188.37,3.07]
[1755362710049,2.84,188.38,188.37,3.07]
[1755362710233,2.84,188.37,188.36,2.5361873]
[1755362710729,2.84,188.37,188.36,5.6061873]
[1755362711239,8.1451,188.37,188.36,5.6061873]
[1755362711444,2.84,188.37,188.36,5.6061873]
[1755362711740,47.6577811,188.45,188.36,5.6061873]
[1755362711942,2.84,188.43,188.36,5.6061873]
[1755362712239,2.84,188.41,188.36,2.5361873]
[1755362712440,2.84,188.42,188.39,5.6061873]
[1755362712641,2.84,188.41,188.4,3.07]
[1755362713244,8.1442,188.41,188.4,3.07]
[1755362713434,2.84,188.49,188.4,3.07]
[1755362713633,2.84,188.47,188.4,3.07]
[1755362713834,4.44331557,188.52,188.42,2.5361873]
[1755362714041,2.84,188.46,188.42,2.5361873]
[1755362714242,2.84,188.46,188.43,3.07]
[1755362714439,2.84,188.46,188.42,2.5361873]
[1755362714440,4.44331557,188.53,188.44,3.07]
[1755362714643,2.84,188.45,188.44,3.07]
[1755362715344,2.84,188.53,188.44,3.07]
[1755362715544,2.84,188.51,188.46,2.5361873]
[1755362715743,8.1439,188.42,188.35,130.36]
[1755362715947,2.84,188.51,188.42,3.07]
[1755362716139,4.02161235,188.5,188.41,2.5361873]
[1755362716344,2.84,188.48,188.39,3.07]
[1755362716550,2.84,188.46,188.37,5.6061873]
[1755362716747,4.01843652,188.45,188.37,3.07]
[1755362716940,4.01807939,188.44,188.37,3.07]
[1755362717246,8.1448,188.38,188.37,3.07]
[1755362717743,8.1451,188.37,188.35,3.07]
[1755362718135,5.3054,188.36,188.35,3.07]
[1755362718338,2.84,188.36,188.34,2.5361873]
[1755362718541,2.84,188.35,188.33,3.07]
[1755362718737,2.84,188.35,188.32,3.01]
[1755362718936,2.5361873,188.45,188.32,3.01]
[1755362719141,2.83,188.35,188.33,3.01]
[1755362719445,8.1357,188.35,188.33,3.01]
[1755362719645,2.83,188.35,188.32,3.01]
[1755362720146,2.83,188.35,188.33,3.01]
[1755362720347,2.83,188.35,188.34,3.01]
[1755362720649,2.83,188.44,188.34,5.5461873]
[1755362720942,5.3052,188.37,188.34,5.5461873]
[1755362721247,2.83,188.44,188.35,3.01]
[1755362721444,2.83,188.44,188.37,2.5361873]
[1755362721643,5.3048,188.38,188.37,5.5461873]
[1755362721947,8.1348,188.38,188.37,5.5461873]
[1755362722647,5.3048,188.38,188.37,5.5461873]
[1755362723050,2.83,188.4,188.38,3.01]
[1755362723353,2.83,188.41,188.4,3.01]
[1755362723544,2.83,188.5,188.4,3.01]
[1755362723745,4.01988238,188.49,188.4,5.5461873]
[1755362724053,2.83,188.47,188.4,2.5361873]
[1755362724640,5.304,188.41,188.4,2.5361873]
[1755362724846,8.134,188.41,188.4,2.5361873]
[1755362725946,2.5361873,188.51,188.37,2.5361873]
[1755362725947,10.6038,188.49,188.37,2.5361873]
[1755362726148,2.83,188.47,188.34,2.5361873]
[1755362726444,15.04711557,188.49,188.34,2.5361873]
[1755362726445,2.83,188.44,188.34,2.5361873]
[1755362726648,8.1359,188.34,188.33,3.01]
[1755362726850,2.83,188.34,188.31,5.5461873]
[1755362727050,8.1364,188.33,188.31,5.5461873]
[1755362727241,8.1364,188.33,188.32,3.01]
[1755362727848,8.1365,188.32,188.31,5.5461873]
[1755362728554,2.5361873,188.39,188.28,2.5361873]
[1755362728856,2.83,188.38,188.27,3.01]
[1755362729648,5.3076,188.29,188.25,132.8761873]
[1755362729848,8.1376,188.29,188.28,3.01]
[1755362730460,5.3077,188.28,188.25,132.8761873]
[1755362730755,8.1377,188.28,188.26,3.01]
[1755362731653,8.1377,188.28,188.25,132.8761873]
[1755362731852,8.1377,188.28,188.27,3.01]
[1755362732455,5.3074,188.29,188.27,3.01]
[1755362732656,5.3074,188.29,188.28,3.01]
[1755362732657,8.1374,188.29,188.28,3.01]
[1755362733158,8.1374,188.29,188.25,138.1845873]
[1755362733159,2.83,188.28,188.26,3.01]
[1755362733356,2.83,188.28,188.27,3.01]
[1755362733858,2.5361873,188.39,188.27,3.01]
[1755362734054,2.83,188.37,188.26,3.01]
[1755362735360,5.3075,188.29,188.26,3.01]
[1755362735560,2.83,188.28,188.26,3.01]
[1755362736963,5.3076,188.28,188.26,3.01]
[1755362737163,2.83,188.27,188.25,130.34]
[1755362738265,2.83,188.26,188.25,130.34]
[1755362738466,2.83,188.26,188.25,133.35]
[1755362738767,2.83,188.28,188.25,135.6482]
[1755362738962,2.83,188.28,188.27,3.01]
[1755362739466,2.83,188.28,188.25,130.34]
[1755362739766,2.83,188.35,188.25,130.34]
[1755362739964,2.83,188.35,188.26,3.01]
[1755362740657,5.3076,188.29,188.25,130.34]
[1755362740860,8.1376,188.29,188.27,3.01]
[1755362741360,8.1376,188.29,188.26,3.01]
[1755362741561,2.83,188.3,188.26,3.01]
[1755362741954,2.83,188.38,188.26,3.01]
[1755362742354,2.83,188.36,188.26,3.01]
[1755362742964,2.83,188.36,188.27,5.5461873]
[1755362743167,2.83,188.36,188.28,3.01]
[1755362743368,5.3062,188.34,188.3,2.5361873]
[1755362743662,8.1362,188.34,188.31,3.01]
[1755362743863,5.3057,188.35,188.31,8.3168]
[1755362744062,8.1357,188.35,188.32,3.01]
[1755362744263,2.83,188.36,188.33,2.5361873]
[1755362744464,2.83,188.36,188.35,3.01]
[1755362744864,2.83,188.37,188.36,3.01]
[1755362745266,8.1353,188.37,188.36,3.01]
[1755362745466,5.3053,188.37,188.34,3.01]
[1755362745669,2.83,188.44,188.34,5.5461873]
[1755362745972,2.83,188.36,188.35,3.01]
[1755362746466,2.83,188.44,188.3,3.01]
[1755362746666,2.83,188.38,188.27,3.01]
[1755362746867,5.3071,188.3,188.27,3.01]
[1755362747167,8.1371,188.3,188.29,3.01]
[1755362747569,5.3068,188.31,188.29,3.01]
[1755362747871,5.3068,188.31,188.27,3.01]